Workbook

Sheet main
B2: Credit Card Payoff Calculator Using Snowball Method
C4: Debt 1 | D4: Debt 2 | E4: Debt 3 | G4: Additional Payment
B5: Balance | C5: 2500 | D5: 5050 | E5: 6020 | G5: Per Month | H5: 450
B6: Payment | C6: 70 | D6: 120 | E6: 250 | G6: One Time | H6: 1500
B7: Interest | C7: 0.16 | D7: 0.045 | E7: 0.068
B9: Month | C9: Debt 1 | E9: Debt 2 | G9: Debt 3
C10: Payment | D10: Balance | E10: Payment | F10: Balance | G10: Payment | H10: Balance
B11: =ROW()-10 -> 1 | C11: =IF(H5+H6>=C5,C5,H5+H6+C6) -> 2020 | D11: =IF(C5-C11<0,0,C5-C11) -> 480 | E11: =IF(H5+H6>=C5+D5,D5,IF(AND(C11=C5,C11<>0),H5+H6-D5+D6,D6)) -> 120 | F11: =D5-E11 -> 4930 | G11: =IF(H5+H6>=D5+E5+C5,E5,IF(AND(E11=D5, E11<>0),H5+H6-D5-C5+E6,E6)) -> 250 | H11: =E5-G11 -> 5770
B12: =ROW()-10 -> 2 | C12: =IF(D11-$H$5-$C$6<=0,$H$5+D11-$H$5,$H$5+$C$6) -> 480 | D12: =IF(D11-C12<=0,0,(D11-C12)*(1+($C$7/12))) -> 0 | E12: =IF(AND(((F11-$H$5+C12-D$6-C$6)<=0),D12=0),F11,IF((F11-$D$6-$H$5)<=0,F11,IF(D12=0,$H$5-C12+D$6+C$6,D$6))) -> 160 | F12: =IF(F11-E12<0,0,(F11-E12)*(1+($D$7/12))) -> 4787.8875 | G12: =IF(AND(((H11-$H$5+E12-E$6-D$6-C$6)<=0),F12=0),H11, IF((H11-$E$6-$H$5)<=0,H11,IF(F12=0,$H$5-E12+E$6+D$6+C$6,E$6))) -> 250 | H12: =IF(H11-G12<0,0,(H11-G12)*(1+($E$7/12))) -> 5551.28
B13: 3 | C13: 0 | D13: =IF(D12-C13<=0,0,(D12-C13)*(1+($C$7/12))) -> 0 | E13: 640 | F13: =IF(F12-E13<0,0,(F12-E13)*(1+($D$7/12))) -> 4163.442078 | G13: 250 | H13: =IF(H12-G13<0,0,(H12-G13)*(1+($E$7/12))) -> 5331.320587
B14: 4 | C14: 0 | D14: 0 | E14: 640 | F14: 3536.654986 | G14: 250 | H14: 5110.114737
B15: 5 | C15: 0 | D15: 0 | E15: 640 | F15: 2907.517442 | G15: 250 | H15: 4887.655387
B16: 6 | C16: 0 | D16: 0 | E16: 640 | F16: 2276.020633 | G16: 250 | H16: 4663.935434
B17: 7 | C17: 0 | D17: =IF(D16-C17<=0,0,(D16-C17)*(1+($C$7/12))) -> 0 | E17: 640 | F17: 1642.15571 | G17: 250 | H17: 4438.947735
B18: 8 | C18: 0 | D18: 0 | E18: 640 | F18: 1005.913794 | G18: 250 | H18: 4212.685105
B19: 9 | C19: 0 | D19: 0 | E19: 640 | F19: 367.2859705 | G19: 250 | H19: 3985.140321
B20: 10 | C20: 0 | D20: 0 | E20: 367.2859705 | F20: 0 | G20: 522.7140295 | H20: 3482.046707
B21: 11 | C21: 0 | D21: 0 | E21: 0 | F21: 0 | G21: 890 | H21: 2606.734972
B22: 12 | C22: 0 | D22: 0 | E22: 0 | F22: 0 | G22: 890 | H22: 1726.463137
B23: 13 | C23: 0 | D23: 0 | E23: 0 | F23: =IF(F22-E23<0,0,(F22-E23)*(1+($D$7/12))) -> 0 | G23: 890 | H23: 841.2030944
B24: 14 | C24: 0 | D24: 0 | E24: 0 | F24: 0 | G24: 841.2030944 | H24: 0
B25: 15 | C25: 0 | D25: 0 | E25: 0 | F25: 0 | G25: 0 | H25: 0
B26: 16 | C26: 0 | D26: 0 | E26: 0 | F26: 0 | G26: 0 | H26: 0
B27: 17 | C27: 0 | D27: =IF(D26-C27<=0,0,(D26-C27)*(1+($C$7/12))) -> 0 | E27: 0 | F27: =IF(F26-E27<0,0,(F26-E27)*(1+($D$7/12))) -> 0 | G27: 0 | H27: 0
B28: 18 | C28: 0 | D28: 0 | E28: 0 | F28: 0 | G28: 0 | H28: 0
B29: 19 | C29: 0 | D29: 0 | E29: 0 | F29: 0 | G29: 0 | H29: 0
B30: 20 | C30: 0 | D30: 0 | E30: 0 | F30: 0 | G30: 0 | H30: 0
B31: 21 | C31: 0 | D31: 0 | E31: 0 | F31: 0 | G31: 0 | H31: 0
B32: 22 | C32: 0 | D32: 0 | E32: 0 | F32: 0 | G32: 0 | H32: =IF(H31-G32<0,0,(H31-G32)*(1+($E$7/12))) -> 0
B33: 23 | C33: 0 | D33: 0 | E33: 0 | F33: 0 | G33: 0 | H33: 0
B34: 24 | C34: 0 | D34: 0 | E34: 0 | F34: 0 | G34: 0 | H34: 0
B35: 25 | C35: 0 | D35: 0 | E35: 0 | F35: 0 | G35: 0 | H35: 0
B36: 26 | C36: 0 | D36: 0 | E36: 0 | F36: 0 | G36: 0 | H36: 0
B37: 27 | C37: 0 | D37: 0 | E37: 0 | F37: 0 | G37: 0 | H37: 0
B38: 28 | C38: 0 | D38: 0 | E38: 0 | F38: 0 | G38: 0 | H38: 0
B39: 29 | C39: 0 | D39: 0 | E39: 0 | F39: 0 | G39: 0 | H39: 0
B40: 30 | C40: 0 | D40: 0 | E40: 0 | F40: 0 | G40: 0 | H40: 0

Sheet Template
B2: Using Snowball Method
C4: Debt 1 | D4: Debt 2 | E4: Debt 3 | G4: Additional Payment
B5: Balance | C5: 2500 | D5: 5050 | E5: 6020 | G5: Per Month | H5: 450
B6: Payment | C6: 70 | D6: 120 | E6: 250 | G6: One Time | H6: 1500
B7: Interest | C7: 0.16 | D7: 0.045 | E7: 0.068
B9: Month | C9: Debt 1 | E9: Debt 2 | G9: Debt 3
C10: Payment | D10: Balance | E10: Payment | F10: Balance | G10: Payment | H10: Balance
B11: =ROW()-10 -> 1 | C11: =IF(H5+H6>=C5,C5,H5+H6+C6) -> 2020 | D11: =IF(C5-C11<0,0,C5-C11) -> 480 | E11: =IF(H5+H6>=C5+D5,D5,IF(AND(C11=C5,C11<>0),H5+H6-D5+D6,D6)) -> 120 | F11: =D5-E11 -> 4930 | G11: =IF(H5+H6>=D5+E5+C5,E5,IF(AND(E11=D5, E11<>0),H5+H6-D5-C5+E6,E6)) -> 250 | H11: =E5-G11 -> 5770
B12: =ROW()-10 -> 2 | C12: =IF(D11-$H$5-$C$6<=0,$H$5+D11-$H$5,$H$5+$C$6) -> 480 | D12: =IF(D11-C12<=0,0,(D11-C12)*(1+($C$7/12))) -> 0 | E12: =IF(AND(((F11-$H$5+C12-D$6-C$6)<=0),D12=0),F11,IF((F11-$D$6-$H$5)<=0,F11,IF(D12=0,$H$5-C12+D$6+C$6,D$6))) -> 160 | F12: =IF(F11-E12<0,0,(F11-E12)*(1+($D$7/12))) -> 4787.8875 | G12: =IF(AND(((H11-$H$5+E12-E$6-D$6-C$6)<=0),F12=0),H11, IF((H11-$E$6-$H$5)<=0,H11,IF(F12=0,$H$5-E12+E$6+D$6+C$6,E$6))) -> 250 | H12: =IF(H11-G12<0,0,(H11-G12)*(1+($E$7/12))) -> 5551.28
B13: 3 | C13: 0 | D13: =IF(D12-C13<=0,0,(D12-C13)*(1+($C$7/12))) -> 0 | E13: 640 | F13: =IF(F12-E13<0,0,(F12-E13)*(1+($D$7/12))) -> 4163.442078 | G13: 250 | H13: =IF(H12-G13<0,0,(H12-G13)*(1+($E$7/12))) -> 5331.320587
B14: 4 | C14: 0 | D14: 0 | E14: 640 | F14: 3536.654986 | G14: 250 | H14: 5110.114737
B15: 5 | C15: 0 | D15: 0 | E15: 640 | F15: 2907.517442 | G15: 250 | H15: 4887.655387
B16: 6 | C16: 0 | D16: 0 | E16: 640 | F16: 2276.020633 | G16: 250 | H16: 4663.935434
B17: 7 | C17: 0 | D17: 0 | E17: 640 | F17: 1642.15571 | G17: 250 | H17: 4438.947735
B18: 8 | C18: 0 | D18: 0 | E18: 640 | F18: 1005.913794 | G18: 250 | H18: 4212.685105
B19: 9 | C19: 0 | D19: 0 | E19: 640 | F19: 367.2859705 | G19: 250 | H19: 3985.140321
B20: 10 | C20: 0 | D20: 0 | E20: 367.2859705 | F20: 0 | G20: 522.7140295 | H20: 3482.046707
B21: 11 | C21: 0 | D21: 0 | E21: 0 | F21: 0 | G21: 890 | H21: 2606.734972
B22: 12 | C22: 0 | D22: 0 | E22: 0 | F22: 0 | G22: 890 | H22: 1726.463137
B23: 13 | C23: 0 | D23: 0 | E23: 0 | F23: 0 | G23: 890 | H23: 841.2030944
B24: 14 | C24: 0 | D24: 0 | E24: 0 | F24: 0 | G24: 841.2030944 | H24: 0
B25: 15 | C25: 0 | D25: 0 | E25: 0 | F25: 0 | G25: 0 | H25: 0
B26: 16 | C26: 0 | D26: 0 | E26: 0 | F26: 0 | G26: 0 | H26: 0
B27: 17 | C27: 0 | D27: 0 | E27: 0 | F27: 0 | G27: 0 | H27: 0
B28: 18 | C28: 0 | D28: 0 | E28: 0 | F28: 0 | G28: 0 | H28: 0
B29: 19 | C29: 0 | D29: 0 | E29: 0 | F29: 0 | G29: 0 | H29: 0
B30: 20 | C30: 0 | D30: 0 | E30: 0 | F30: 0 | G30: 0 | H30: 0
B31: 21 | C31: 0 | D31: 0 | E31: 0 | F31: 0 | G31: 0 | H31: 0
B32: 22 | C32: 0 | D32: 0 | E32: 0 | F32: 0 | G32: 0 | H32: 0
B33: 23 | C33: 0 | D33: 0 | E33: 0 | F33: 0 | G33: 0 | H33: 0
B34: 24 | C34: 0 | D34: 0 | E34: 0 | F34: 0 | G34: 0 | H34: 0
B35: 25 | C35: 0 | D35: 0 | E35: 0 | F35: 0 | G35: 0 | H35: 0
B36: 26 | C36: 0 | D36: 0 | E36: 0 | F36: 0 | G36: 0 | H36: 0
B37: 27 | C37: 0 | D37: 0 | E37: 0 | F37: 0 | G37: 0 | H37: 0
B38: 28 | C38: 0 | D38: 0 | E38: 0 | F38: 0 | G38: 0 | H38: 0
B39: 29 | C39: 0 | D39: 0 | E39: 0 | F39: 0 | G39: 0 | H39: 0
B40: 30 | C40: 0 | D40: 0 | E40: 0 | F40: 0 | G40: 0 | H40: 0
B41: 31 | C41: =IF(D40-$H$5-$C$6<=0,$H$5+D40-$H$5,$H$5+$C$6) -> 0 | D41: =IF(D40-C41<=0,0,(D40-C41)*(1+($C$7/12))) -> 0 | E41: =IF(AND(((F40-$H$5+C41-D$6-C$6)<=0),D41=0),F40,IF((F40-$D$6-$H$5)<=0,F40,IF(D41=0,$H$5-C41+D$6+C$6,D$6))) -> 0 | F41: =IF(F40-E41<0,0,(F40-E41)*(1+($D$7/12))) -> 0 | G41: =IF(AND(((H40-$H$5+E41-E$6-D$6-C$6)<=0),F41=0),H40, IF((H40-$E$6-$H$5)<=0,H40,IF(F41=0,$H$5-E41+E$6+D$6+C$6,E$6))) -> 0 | H41: =IF(H40-G41<0,0,(H40-G41)*(1+($E$7/12))) -> 0
B42: 32 | C42: 0 | D42: 0 | E42: 0 | F42: 0 | G42: 0 | H42: 0
B43: 33 | C43: 0 | D43: 0 | E43: 0 | F43: 0 | G43: 0 | H43: 0
B44: 34 | C44: 0 | D44: 0 | E44: 0 | F44: 0 | G44: 0 | H44: 0
B45: 35 | C45: 0 | D45: 0 | E45: 0 | F45: 0 | G45: 0 | H45: 0
B46: 36 | C46: 0 | D46: 0 | E46: 0 | F46: 0 | G46: 0 | H46: 0
B47: 37 | C47: 0 | D47: 0 | E47: 0 | F47: 0 | G47: 0 | H47: 0
B48: 38 | C48: 0 | D48: 0 | E48: 0 | F48: 0 | G48: 0 | H48: 0
B49: 39 | C49: 0 | D49: 0 | E49: 0 | F49: 0 | G49: 0 | H49: 0
B50: 40 | C50: 0 | D50: 0 | E50: 0 | F50: 0 | G50: 0 | H50: 0
B51: 41 | C51: 0 | D51: 0 | E51: 0 | F51: 0 | G51: 0 | H51: 0
B52: 42 | C52: 0 | D52: 0 | E52: 0 | F52: 0 | G52: 0 | H52: 0
B53: 43 | C53: 0 | D53: 0 | E53: 0 | F53: 0 | G53: 0 | H53: 0
B54: 44 | C54: 0 | D54: 0 | E54: 0 | F54: 0 | G54: 0 | H54: 0
B55: 45 | C55: 0 | D55: 0 | E55: 0 | F55: 0 | G55: 0 | H55: 0
B56: 46 | C56: 0 | D56: 0 | E56: 0 | F56: 0 | G56: 0 | H56: 0
B57: 47 | C57: 0 | D57: 0 | E57: 0 | F57: 0 | G57: 0 | H57: 0
B58: 48 | C58: 0 | D58: 0 | E58: 0 | F58: 0 | G58: 0 | H58: 0
B59: 49 | C59: 0 | D59: 0 | E59: 0 | F59: 0 | G59: 0 | H59: 0
B60: 50 | C60: 0 | D60: 0 | E60: 0 | F60: 0 | G60: 0 | H60: 0
B61: 51 | C61: 0 | D61: 0 | E61: 0 | F61: 0 | G61: 0 | H61: 0
B62: 52 | C62: 0 | D62: 0 | E62: 0 | F62: 0 | G62: 0 | H62: 0
B63: 53 | C63: 0 | D63: 0 | E63: 0 | F63: 0 | G63: 0 | H63: 0
B64: 54 | C64: 0 | D64: 0 | E64: 0 | F64: 0 | G64: 0 | H64: 0
B65: 55 | C65: 0 | D65: 0 | E65: 0 | F65: 0 | G65: 0 | H65: 0
B66: 56 | C66: 0 | D66: 0 | E66: 0 | F66: 0 | G66: 0 | H66: 0
B67: 57 | C67: 0 | D67: 0 | E67: 0 | F67: 0 | G67: 0 | H67: 0
B68: 58 | C68: 0 | D68: 0 | E68: 0 | F68: 0 | G68: 0 | H68: 0
B69: 59 | C69: 0 | D69: 0 | E69: 0 | F69: 0 | G69: 0 | H69: 0
B70: 60 | C70: 0 | D70: 0 | E70: 0 | F70: 0 | G70: 0 | H70: 0
B71: 61 | C71: 0 | D71: 0 | E71: 0 | F71: 0 | G71: 0 | H71: 0
B72: 62 | C72: 0 | D72: 0 | E72: 0 | F72: 0 | G72: 0 | H72: 0
B73: 63 | C73: 0 | D73: 0 | E73: 0 | F73: 0 | G73: 0 | H73: 0
B74: 64 | C74: 0 | D74: 0 | E74: 0 | F74: 0 | G74: 0 | H74: 0
B75: 65 | C75: 0 | D75: 0 | E75: 0 | F75: 0 | G75: 0 | H75: 0
B76: =ROW()-10 -> 66 | C76: 0 | D76: 0 | E76: 0 | F76: 0 | G76: 0 | H76: 0
B77: 67 | C77: 0 | D77: 0 | E77: 0 | F77: 0 | G77: 0 | H77: 0
B78: 68 | C78: 0 | D78: 0 | E78: 0 | F78: 0 | G78: 0 | H78: 0
B79: 69 | C79: 0 | D79: 0 | E79: 0 | F79: 0 | G79: 0 | H79: 0
B80: 70 | C80: 0 | D80: 0 | E80: 0 | F80: 0 | G80: 0 | H80: 0
B81: 71 | C81: 0 | D81: 0 | E81: 0 | F81: 0 | G81: 0 | H81: 0
B82: 72 | C82: 0 | D82: 0 | E82: 0 | F82: 0 | G82: 0 | H82: 0
B83: 73 | C83: 0 | D83: 0 | E83: 0 | F83: 0 | G83: 0 | H83: 0
B84: 74 | C84: 0 | D84: 0 | E84: 0 | F84: 0 | G84: 0 | H84: 0
B85: 75 | C85: 0 | D85: 0 | E85: 0 | F85: 0 | G85: 0 | H85: 0
B86: 76 | C86: 0 | D86: 0 | E86: 0 | F86: 0 | G86: 0 | H86: 0
B87: 77 | C87: 0 | D87: 0 | E87: 0 | F87: 0 | G87: 0 | H87: 0
B88: 78 | C88: 0 | D88: 0 | E88: 0 | F88: 0 | G88: 0 | H88: 0
B89: 79 | C89: 0 | D89: 0 | E89: 0 | F89: 0 | G89: 0 | H89: 0
B90: 80 | C90: 0 | D90: 0 | E90: 0 | F90: 0 | G90: 0 | H90: 0
B91: 81 | C91: 0 | D91: 0 | E91: 0 | F91: 0 | G91: 0 | H91: 0
B92: 82 | C92: 0 | D92: 0 | E92: 0 | F92: 0 | G92: 0 | H92: 0
B93: 83 | C93: 0 | D93: 0 | E93: 0 | F93: 0 | G93: 0 | H93: 0
B94: 84 | C94: 0 | D94: 0 | E94: 0 | F94: 0 | G94: 0 | H94: 0
B95: 85 | C95: 0 | D95: 0 | E95: 0 | F95: 0 | G95: 0 | H95: 0
B96: 86 | C96: 0 | D96: 0 | E96: 0 | F96: 0 | G96: 0 | H96: 0
B97: 87 | C97: 0 | D97: 0 | E97: 0 | F97: 0 | G97: 0 | H97: 0
B98: 88 | C98: 0 | D98: 0 | E98: 0 | F98: 0 | G98: 0 | H98: 0
B99: 89 | C99: 0 | D99: 0 | E99: 0 | F99: 0 | G99: 0 | H99: 0
B100: 90 | C100: 0 | D100: 0 | E100: 0 | F100: 0 | G100: 0 | H100: 0
B101: 91 | C101: 0 | D101: 0 | E101: 0 | F101: 0 | G101: 0 | H101: 0
B102: 92 | C102: 0 | D102: 0 | E102: 0 | F102: 0 | G102: 0 | H102: 0
B103: 93 | C103: 0 | D103: 0 | E103: 0 | F103: 0 | G103: 0 | H103: 0
B104: 94 | C104: 0 | D104: 0 | E104: 0 | F104: 0 | G104: 0 | H104: 0
B105: 95 | C105: =IF(D104-$H$5-$C$6<=0,$H$5+D104-$H$5,$H$5+$C$6) -> 0 | D105: =IF(D104-C105<=0,0,(D104-C105)*(1+($C$7/12))) -> 0 | E105: =IF(AND(((F104-$H$5+C105-D$6-C$6)<=0),D105=0),F104,IF((F104-$D$6-$H$5)<=0,F104,IF(D105=0,$H$5-C105+D$6+C$6,D$6))) -> 0 | F105: =IF(F104-E105<0,0,(F104-E105)*(1+($D$7/12))) -> 0 | G105: =IF(AND(((H104-$H$5+E105-E$6-D$6-C$6)<=0),F105=0),H104, IF((H104-$E$6-$H$5)<=0,H104,IF(F105=0,$H$5-E105+E$6+D$6+C$6,E$6))) -> 0 | H105: =IF(H104-G105<0,0,(H104-G105)*(1+($E$7/12))) -> 0
B106: 96 | C106: 0 | D106: 0 | E106: 0 | F106: 0 | G106: 0 | H106: 0
B107: 97 | C107: 0 | D107: 0 | E107: 0 | F107: 0 | G107: 0 | H107: 0
B108: 98 | C108: 0 | D108: 0 | E108: 0 | F108: 0 | G108: 0 | H108: 0
B109: 99 | C109: 0 | D109: 0 | E109: 0 | F109: 0 | G109: 0 | H109: 0
B110: 100 | C110: 0 | D110: 0 | E110: 0 | F110: 0 | G110: 0 | H110: 0
B111: 101 | C111: 0 | D111: 0 | E111: 0 | F111: 0 | G111: 0 | H111: 0
B112: 102 | C112: 0 | D112: 0 | E112: 0 | F112: 0 | G112: 0 | H112: 0
B113: 103 | C113: 0 | D113: 0 | E113: 0 | F113: 0 | G113: 0 | H113: 0
B114: 104 | C114: 0 | D114: 0 | E114: 0 | F114: 0 | G114: 0 | H114: 0
B115: 105 | C115: 0 | D115: 0 | E115: 0 | F115: 0 | G115: 0 | H115: 0
B116: 106 | C116: 0 | D116: 0 | E116: 0 | F116: 0 | G116: 0 | H116: 0
B117: 107 | C117: 0 | D117: 0 | E117: 0 | F117: 0 | G117: 0 | H117: 0
B118: 108 | C118: 0 | D118: 0 | E118: 0 | F118: 0 | G118: 0 | H118: 0
B119: 109 | C119: 0 | D119: 0 | E119: 0 | F119: 0 | G119: 0 | H119: 0
B120: 110 | C120: 0 | D120: 0 | E120: 0 | F120: 0 | G120: 0 | H120: 0
B121: 111 | C121: 0 | D121: 0 | E121: 0 | F121: 0 | G121: 0 | H121: 0
B122: 112 | C122: 0 | D122: 0 | E122: 0 | F122: 0 | G122: 0 | H122: 0
B123: 113 | C123: 0 | D123: 0 | E123: 0 | F123: 0 | G123: 0 | H123: 0
B124: 114 | C124: 0 | D124: 0 | E124: 0 | F124: 0 | G124: 0 | H124: 0
B125: 115 | C125: 0 | D125: 0 | E125: 0 | F125: 0 | G125: 0 | H125: 0
B126: 116 | C126: 0 | D126: 0 | E126: 0 | F126: 0 | G126: 0 | H126: 0
B127: 117 | C127: 0 | D127: 0 | E127: 0 | F127: 0 | G127: 0 | H127: 0
B128: 118 | C128: 0 | D128: 0 | E128: 0 | F128: 0 | G128: 0 | H128: 0
B129: 119 | C129: 0 | D129: =IF(D128-C129<=0,0,(D128-C129)*(1+($C$7/12))) -> 0 | E129: =IF(AND(((F128-$H$5+C129-D$6-C$6)<=0),D129=0),F128,IF((F128-$D$6-$H$5)<=0,F128,IF(D129=0,$H$5-C129+D$6+C$6,D$6))) -> 0 | F129: =IF(F128-E129<0,0,(F128-E129)*(1+($D$7/12))) -> 0 | G129: =IF(AND(((H128-$H$5+E129-E$6-D$6-C$6)<=0),F129=0),H128, IF((H128-$E$6-$H$5)<=0,H128,IF(F129=0,$H$5-E129+E$6+D$6+C$6,E$6))) -> 0 | H129: =IF(H128-G129<0,0,(H128-G129)*(1+($E$7/12))) -> 0
B130: 120 | C130: 0 | D130: 0 | E130: 0 | F130: 0 | G130: 0 | H130: 0
